bitfinex/quotes_SOLUSD_20250611
["timestamp","ask_amount","ask_price","bid_price","bid_amount"]
[1749683669342,25.86,160.29,160.25,13.68317022]
[1749683669753,25.86,160.29,160.26,13.68317022]
[1749683672860,39.54317022,160.31,160.26,13.68317022]
[1749683673153,13.68317022,160.3,160.26,13.68317022]
[1749683674671,13.68317022,160.3,160.23,26.0]
[1749683674865,13.68317022,160.3,160.15,112.2339792]
[1749683674866,13.68317022,160.25,160.18,1.6566]
[1749683675047,13.68317022,160.24,160.19,32.33281908]
[1749683676364,25.86,160.25,160.2,13.68317022]
[1749683676557,39.54317022,160.25,160.2,13.68317022]
[1749683677153,39.54317022,160.25,160.21,13.68317022]
[1749683677154,25.86,160.25,160.21,13.68317022]
[1749683677354,39.54317022,160.25,160.21,13.68317022]
[1749683677946,1.5379,160.28,160.23,13.68317022]
[1749683678157,41.87713265,160.27,160.23,13.68317022]
[1749683678450,39.54317022,160.27,160.23,13.68317022]
[1749683678664,25.86,160.27,160.23,13.68317022]
[1749683679458,32.09964314,160.27,160.24,13.68317022]
[1749683679654,25.86,160.27,160.24,13.68317022]
[1749683679970,71.78239404,160.28,160.24,13.68317022]
[1749683680147,71.78239404,160.28,160.23,13.68317022]
[1749683684564,71.78239404,160.28,160.2,0.14216157]
[1749683684763,13.68317022,160.25,160.21,13.68317022]
[1749683685874,6.24063904,160.24,160.21,13.68317022]
[1749683688977,6.24063904,160.24,160.19,18.64964886]
[1749683688978,6.24063904,160.24,160.2,13.68317022]
[1749683689153,6.24039027,160.25,160.21,13.68317022]
[1749683690276,6.24039027,160.25,160.22,13.68317022]
[1749683693982,6.24039027,160.25,160.19,18.64964886]
[1749683694170,6.24039027,160.25,160.22,13.68317022]
[1749683701174,32.08001211,160.26,160.23,13.68317022]
[1749683701577,25.84,160.26,160.24,13.68317022]
[1749683701789,6.23976103,160.27,160.24,13.68317022]
[1749683702168,2.33707749,160.26,160.24,13.68317022]
[1749683702374,6.23976103,160.27,160.24,13.68317022]
[1749683703482,13.68317022,160.25,160.2,5.68]
[1749683703679,13.68317022,160.23,160.2,5.68]
[1749683704076,25.84,160.25,160.2,5.68]
[1749683704285,13.68317022,160.24,160.2,5.68]
[1749683704605,2.33794455,160.23,160.2,5.68]
[1749683704804,13.68317022,160.24,160.2,5.68]
[1749683705008,16.02115241,160.23,160.2,5.68]
[1749683705302,2.33828295,160.22,160.2,5.68]
[1749683705482,6.24141805,160.22,160.2,5.68]
[1749683705678,2.33828234,160.21,160.2,5.68]
[1749683706195,2.33826624,160.21,160.2,5.68]
[1749683706494,6.24141805,160.22,160.2,5.68]
[1749683706697,2.33827805,160.21,160.2,5.68]
[1749683706998,2.33827838,160.21,160.2,5.68]
[1749683707467,8.580086,160.21,160.2,5.68]
[1749683707669,8.58007386,160.21,160.2,5.68]
[1749683708085,6.24180762,160.21,160.2,5.68]
[1749683708287,8.58007386,160.21,160.2,5.68]
[1749683708602,6.24180762,160.21,160.2,5.68]
[1749683708777,8.58008885,160.21,160.2,5.68]
[1749683709102,8.5800885,160.21,160.2,5.68]
[1749683709284,8.58008845,160.21,160.2,5.68]
[1749683709595,8.580086,160.21,160.2,5.68]
[1749683709780,6.24141805,160.22,160.2,5.68]
[1749683709979,6.24141805,160.22,160.21,13.68317022]
[1749683711890,13.68317022,160.24,160.2,19.36317022]
[1749683712283,13.68317022,160.23,160.2,5.68]
[1749683712877,13.68317022,160.24,160.2,5.68]
[1749683713809,21.84111977,160.25,160.2,5.68]
[1749683713810,13.68317022,160.22,160.2,5.68]
[1749683714473,19.92419874,160.23,160.2,5.68]
[1749683715091,6.24073596,160.24,160.21,13.68317022]
[1749683715288,26.0,160.25,160.2,5.68]
[1749683715289,32.24041099,160.25,160.22,13.68317022]
[1749683715471,6.24014174,160.26,160.23,13.68317022]
[1749683715675,6.24014174,160.26,160.22,13.68317022]
[1749683715905,19.92331196,160.26,160.21,13.68317022]
[1749683718506,6.24014174,160.26,160.22,13.68317022]
[1749683719103,26.0,160.28,160.24,13.68317022]
[1749683719290,25.82,160.28,160.25,13.68317022]
[1749683719497,25.82,160.28,160.24,13.68317022]
[1749683719882,25.82,160.28,160.21,18.64964886]
[1749683719883,149.1,160.29,160.25,13.68317022]
[1749683720084,25.82,160.29,160.25,13.68317022]
[1749683720301,26.4575974,160.3,160.25,13.68317022]
[1749683720494,52.2775974,160.3,160.25,13.68317022]
[1749683720888,26.4575974,160.3,160.25,13.68317022]
[1749683721089,52.2775974,160.3,160.25,13.68317022]
[1749683721381,4.6620319,160.29,160.25,13.68317022]
[1749683721582,10.9007308,160.29,160.25,13.68317022]
[1749683722612,4.6620319,160.29,160.25,13.68317022]
[1749683723609,4.6620319,160.29,160.21,18.64964886]
[1749683723610,13.68317022,160.28,160.23,13.68317022]
[1749683724318,39.50317022,160.29,160.24,13.68317022]
[1749683724487,25.82,160.29,160.25,13.68317022]
[1749683724820,13.68317022,160.32,160.28,13.68317022]
[1749683724986,10.89847212,160.33,160.28,13.68317022]
[1749683725319,25.82,160.31,160.28,13.68317022]
[1749683726408,6.23728418,160.33,160.28,13.68317022]
[1749683726597,39.50317022,160.32,160.28,13.68317022]
[1749683727508,13.68317022,160.32,160.28,13.68317022]
[1749683727814,39.50317022,160.32,160.28,13.68317022]
[1749683728612,39.50317022,160.32,160.27,13.68317022]
[1749683730992,25.82,160.32,160.28,13.68317022]
[1749683732193,19.9204544,160.33,160.28,13.68317022]
[1749683732499,25.82,160.32,160.28,13.68317022]
[1749683733596,45.7404544,160.33,160.28,13.68317022]
[1749683734717,13.68317022,160.32,160.28,13.68317022]
[1749683734918,13.68317022,160.32,160.24,41.23247022]
[1749683734919,13.68317022,160.31,160.27,5.68]
[1749683735097,32.05753707,160.32,160.24,27.5493]
[1749683735098,13.68317022,160.29,160.24,1.5493]
[1749683735305,13.68317022,160.27,160.24,5.68]
[1749683735615,65.48317022,160.29,160.24,5.68]
[1749683735798,65.48317022,160.29,160.25,13.68317022]
[1749683736321,51.8,160.29,160.25,13.68317022]
[1749683736613,65.48317022,160.29,160.24,19.36317022]
[1749683736916,25.8,160.29,160.25,13.68317022]
[1749683737521,25.8,160.29,160.26,13.68317022]
[1749683737697,25.8,160.29,160.24,5.68]
[1749683737698,25.8,160.29,160.28,13.68317022]
[1749683738032,25.8,160.33,160.28,13.68317022]
[1749683738317,13.68317022,160.34,160.3,13.68317022]
[1749683738519,25.8,160.33,160.3,13.68317022]
[1749683739102,25.8,160.33,160.29,13.68317022]
[1749683740020,39.48317022,160.33,160.28,13.68317022]
[1749683740515,25.8,160.33,160.28,13.68317022]
[1749683740718,39.48317022,160.33,160.28,13.68317022]
[1749683740904,13.68317022,160.33,160.28,13.68317022]
[1749683741110,25.8,160.32,160.28,13.68317022]
[1749683741619,13.68317022,160.29,160.24,13.68317022]
[1749683741821,13.68317022,160.28,160.26,5.68]
[1749683742033,39.48317022,160.29,160.26,5.68]
[1749683742329,25.8,160.29,160.27,13.68317022]
[1749683742629,39.48317022,160.31,160.27,13.68317022]
[1749683743002,39.48317022,160.31,160.26,19.36317022]
[1749683743922,25.8,160.31,160.28,13.68317022]
[1749683745022,13.68317022,160.32,160.28,13.68317022]
[1749683745323,39.48317022,160.32,160.28,13.68317022]
[1749683745832,39.48317022,160.32,160.27,13.68317022]
[1749683746613,25.8,160.32,160.28,13.68317022]
[1749683746932,25.8,160.31,160.28,13.68317022]
[1749683747132,39.48317022,160.31,160.27,13.68317022]
[1749683748630,39.48317022,160.31,160.26,5.68]
[1749683748842,13.68317022,160.29,160.26,5.68]
[1749683749198,32.03795558,160.31,160.28,13.68317022]
[1749683749199,25.8,160.31,160.28,13.68317022]
[1749683749519,25.8,160.31,160.29,13.68317022]
[1749683750102,13.68317022,160.34,160.29,13.68317022]
[1749683750312,25.8,160.33,160.29,13.68317022]
[1749683750727,13.68317022,160.34,160.29,13.68317022]
[1749683751225,25.8,160.33,160.29,13.68317022]
[1749683751426,13.68317022,160.34,160.29,13.68317022]
[1749683751605,25.8,160.33,160.29,13.68317022]
[1749683753014,25.8,160.33,160.3,13.68317022]
[1749683753418,25.8,160.33,160.26,5.68]
[1749683753419,25.8,160.33,160.29,13.68317022]
[1749683753631,175.1,160.35,160.31,13.68317022]
[1749683754151,7.77693646,160.39,160.33,13.68317022]
[1749683754325,7.77693646,160.39,160.34,13.68317022]
[1749683754326,39.48317022,160.38,160.34,13.68317022]
[1749683754634,39.48317022,160.38,160.33,13.68317022]
[1749683755330,25.8,160.38,160.34,13.68317022]
[1749683755507,39.48317022,160.38,160.34,13.68317022]
[1749683755923,13.68317022,160.37,160.32,13.68317022]
[1749683758434,32.03525384,160.38,160.32,13.68317022]
[1749683758617,13.68317022,160.37,160.32,13.68317022]
[1749683759034,25.8,160.38,160.32,13.68317022]
[1749683759334,25.8,160.38,160.3,0.14216157]
[1749683759335,39.48317022,160.38,160.33,13.68317022]
[1749683759925,39.48317022,160.38,160.34,13.68317022]
[1749683760507,13.68317022,160.38,160.34,13.68317022]
[1749683760840,39.46317022,160.38,160.34,13.68317022]
[1749683761134,39.46317022,160.38,160.33,13.68317022]
[1749683761434,13.68317022,160.34,160.28,5.66]
[1749683761736,13.68317022,160.32,160.28,5.66]
[1749683762540,13.68317022,160.31,160.28,5.66]
[1749683762921,13.68317022,160.29,160.28,5.66]
[1749683763241,13.68317022,160.3,160.28,5.66]
[1749683763924,13.68317022,160.31,160.28,5.66]
[1749683764322,13.68317022,160.32,160.28,5.66]
[1749683764524,13.68317022,160.31,160.28,5.66]
[1749683765638,13.68317022,160.3,160.28,5.66]
[1749683765828,32.0172251,160.33,160.28,5.66]
[1749683766030,13.68317022,160.32,160.28,5.66]
[1749683766825,25.78,160.33,160.29,13.68317022]
[1749683767028,39.68317022,160.35,160.3,13.68317022]
[1749683767228,26.0,160.34,160.31,13.68317022]
[1749683769134,149.1,160.37,160.32,13.68317022]
[1749683769339,1.5402,160.38,160.34,13.68317022]
[1749683769340,13.68317022,160.38,160.34,13.68317022]
[1749683769528,25.78,160.37,160.34,13.68317022]
[1749683769851,39.46317022,160.38,160.34,13.68317022]
[1749683770152,39.46317022,160.38,160.33,13.68317022]
[1749683770331,25.78,160.38,160.34,13.68317022]
[1749683770528,13.68317022,160.38,160.34,13.68317022]
[1749683770733,39.46317022,160.38,160.34,13.68317022]
[1749683771352,25.78,160.38,160.34,13.68317022]
[1749683771547,189.83705825,160.42,160.35,13.68317022]
[1749683771548,150.7112,160.42,160.35,13.68317022]
[1749683771730,13.68317022,160.4,160.35,13.68317022]
[1749683772052,13.68317022,160.4,160.36,13.68317022]
[1749683772353,39.46317022,160.4,160.36,13.68317022]
[1749683772738,39.46317022,160.4,160.35,13.68317022]
[1749683774056,25.78,160.39,160.35,13.68317022]
[1749683774432,25.78,160.39,160.36,13.68317022]
[1749683774630,25.78,160.39,160.32,13.68317022]
[1749683774843,25.78,160.39,160.35,13.68317022]
[1749683775044,39.46317022,160.39,160.35,13.68317022]
[1749683775746,25.78,160.39,160.35,13.68317022]
[1749683775952,39.46317022,160.39,160.35,13.68317022]
[1749683777336,25.78,160.39,160.35,13.68317022]
[1749683777745,39.46317022,160.4,160.36,13.68317022]
[1749683778157,39.46317022,160.4,160.35,13.68317022]
[1749683778865,39.46317022,160.4,160.36,13.68317022]
[1749683781470,39.46317022,160.4,160.35,13.68317022]
[1749683781641,25.78,160.4,160.36,13.68317022]
[1749683782262,39.46317022,160.4,160.36,13.68317022]
[1749683782467,13.68317022,160.39,160.35,13.68317022]
[1749683782841,39.46317022,160.4,160.35,13.68317022]
[1749683783971,25.78,160.4,160.37,13.68317022]
[1749683784343,176.7112,160.42,160.37,19.32317022]
[1749683784548,25.76,160.41,160.37,19.32317022]
[1749683784773,25.76,160.41,160.38,13.68317022]
[1749683784960,188.78317022,160.42,160.38,13.68317022]
[1749683785167,25.76,160.41,160.38,13.68317022]
[1749683785547,6.23208276,160.46,160.39,13.68317022]
[1749683785763,26.0,160.43,160.39,13.68317022]
[1749683785965,25.76,160.42,160.39,13.68317022]
[1749683787850,25.76,160.42,160.38,13.68317022]
[1749683788254,39.44317022,160.42,160.38,13.68317022]
[1749683788887,25.76,160.42,160.38,13.68317022]
[1749683789086,39.44317022,160.42,160.37,5.64]
[1749683789248,39.44317022,160.42,160.37,19.32317022]
[1749683789650,39.44317022,160.42,160.38,13.68317022]
[1749683790461,13.68317022,160.39,160.35,5.64]
[1749683790689,13.68317022,160.36,160.35,5.64]
[1749683790969,25.76,160.39,160.35,5.64]
[1749683791179,13.68317022,160.38,160.35,5.64]
[1749683792561,31.99481107,160.39,160.35,5.64]
[1749683792562,13.68317022,160.37,160.35,5.64]
[1749683793447,31.99481107,160.39,160.35,5.64]
[1749683793665,13.68317022,160.37,160.35,5.64]
[1749683794779,13.68317022,160.38,160.35,5.64]
[1749683795170,31.99481107,160.39,160.35,5.64]
[1749683795469,13.68317022,160.38,160.35,5.64]
[1749683796964,13.68317022,160.39,160.35,19.32317022]
[1749683798078,39.44317022,160.4,160.35,19.32317022]
[1749683798385,162.78317022,160.42,160.37,13.68317022]
[1749683798563,6.23263582,160.45,160.4,13.68317022]
[1749683798767,155.33197964,160.47,160.42,13.68317022]
[1749683798957,39.44317022,160.46,160.42,13.68317022]
[1749683799160,155.33197964,160.47,160.43,13.68317022]
[1749683799161,149.1,160.47,160.43,13.68317022]
[1749683799356,25.76,160.46,160.43,13.68317022]
[1749683799557,149.1,160.47,160.4,18.79181043]
[1749683799776,174.86,160.47,160.43,13.68317022]
[1749683800173,188.54317022,160.47,160.43,13.68317022]
[1749683800362,174.86,160.47,160.43,13.68317022]
[1749683800775,162.78317022,160.47,160.43,13.68317022]
[1749683800990,33.84986122,160.49,160.43,13.68317022]
[1749683800991,7.84986122,160.49,160.43,13.68317022]
[1749683801175,25.76,160.48,160.43,13.68317022]
[1749683801371,8.67823009,160.5,160.44,5.64]
[1749683801575,39.44317022,160.49,160.44,5.64]
[1749683801772,25.76,160.49,160.44,5.64]
[1749683801975,13.68317022,160.48,160.44,5.64]
[1749683802178,13.68317022,160.47,160.44,5.64]
[1749683802864,13.68317022,160.46,160.44,5.64]
[1749683803063,13.68317022,160.47,160.44,5.64]
[1749683806588,13.68317022,160.45,160.44,5.64]
[1749683807563,25.74,160.46,160.44,5.64]
[1749683807764,13.68317022,160.45,160.44,5.64]
[1749683808586,19.91564139,160.45,160.44,5.64]
[1749683808889,13.68317022,160.45,160.44,5.64]
[1749683810392,31.97210909,160.46,160.44,5.64]
[1749683810567,6.23210909,160.46,160.44,5.64]
[1749683810767,65.42317022,160.45,160.44,5.64]
[1749683811870,51.74,160.45,160.44,5.64]
[1749683812087,65.42317022,160.45,160.44,5.64]
[1749683813064,51.74,160.45,160.44,5.64]
[1749683813262,13.68317022,160.47,160.44,5.64]
[1749683813464,25.74,160.46,160.44,5.64]
[1749683813691,39.42317022,160.47,160.44,5.64]
[1749683815187,13.68317022,160.46,160.44,5.64]
[1749683815594,39.42317022,160.46,160.44,5.64]
[1749683816471,13.68317022,160.46,160.44,5.64]
[1749683816794,149.1,160.48,160.45,18.64964886]
[1749683816965,2.48773009,160.5,160.44,19.32317022]
[1749683817171,2.48773009,160.5,160.46,13.68317022]
[1749683817496,41.91090031,160.5,160.46,13.68317022]
[1749683817675,13.68317022,160.49,160.44,7.2831]
[1749683817990,13.68317022,160.47,160.44,5.64]
[1749683818171,25.74,160.48,160.44,19.32317022]
[1749683818373,39.42317022,160.48,160.44,19.32317022]
[1749683818567,25.74,160.48,160.44,5.64]
[1749683818770,39.42317022,160.48,160.44,5.64]
[1749683818964,25.74,160.48,160.45,13.68317022]
[1749683819370,28.22773009,160.5,160.46,13.68317022]
[1749683819900,41.91090031,160.5,160.45,32.33281908]
[1749683820073,16.17090031,160.5,160.45,32.33281908]
[1749683820273,28.22773009,160.5,160.46,13.68317022]
[1749683820473,2.48773009,160.5,160.47,13.68317022]
[1749683820872,2.48773009,160.5,160.46,13.68317022]
[1749683821295,2.48773009,160.5,160.45,18.64964886]
[1749683821492,2.48773009,160.5,160.46,13.68317022]
[1749683821694,16.17090031,160.5,160.46,13.68317022]
[1749683822283,2.48773009,160.5,160.45,18.64964886]
[1749683822480,2.48773009,160.5,160.47,13.68317022]
[1749683822671,2.48773009,160.5,160.46,18.79181043]
[1749683822872,2.48773009,160.5,160.47,13.68317022]
[1749683823072,2.48773009,160.5,160.46,32.33281908]
[1749683824804,2.48773009,160.5,160.47,13.68317022]
[1749683825097,2.48773009,160.5,160.46,18.64964886]
[1749683825098,2.48773009,160.5,160.48,13.68317022]
[1749683825307,2.48773009,160.5,160.45,1.5968]
[1749683825484,16.17090031,160.5,160.45,33.92961908]
[1749683825810,13.68317022,160.48,160.43,26.0]
[1749683826011,2.48773009,160.5,160.46,5.64]
[1749683826292,26.0,160.48,160.46,5.64]
[1749683826497,13.68317022,160.47,160.46,5.64]
[1749683827875,26.0,160.48,160.46,5.64]
[1749683828087,13.68317022,160.47,160.46,5.64]
[1749683834405,65.40317022,160.48,160.46,5.64]
[1749683834587,13.68317022,160.47,160.46,5.64]
[1749683834812,51.72,160.48,160.46,5.64]
[1749683835017,13.68317022,160.47,160.46,5.64]
[1749683836730,18.34211608,160.47,160.46,5.64]
[1749683837110,13.68317022,160.47,160.46,5.64]
[1749683837330,18.34211608,160.47,160.46,5.64]
[1749683837908,39.40317022,160.48,160.46,5.64]
[1749683838203,4.65867611,160.47,160.46,5.64]
[1749683838621,39.40317022,160.48,160.46,5.64]
[1749683839023,4.65866835,160.47,160.46,5.64]
[1749683839216,4.65866901,160.47,160.46,5.64]
[1749683839426,39.40317022,160.48,160.46,5.64]
[1749683839626,4.65863645,160.47,160.46,5.64]
[1749683839831,18.34180667,160.47,160.46,5.64]
[1749683840030,18.34186959,160.47,160.46,5.64]
[1749683840347,13.68317022,160.47,160.46,5.64]
[1749683840513,18.34191827,160.47,160.46,5.64]
[1749683840709,18.34191972,160.47,160.46,5.64]
[1749683840909,18.34192747,160.47,160.46,5.64]
[1749683841123,13.68317022,160.47,160.46,5.64]
[1749683841338,4.65873103,160.47,160.46,5.64]
[1749683841714,39.40317022,160.48,160.46,5.64]
[1749683841931,4.65870623,160.47,160.46,5.64]
[1749683842104,4.65871464,160.47,160.46,5.64]
[1749683842304,39.40317022,160.48,160.46,5.64]
[1749683842835,18.3418842,160.47,160.46,5.64]
[1749683843142,4.65870688,160.47,160.46,5.64]
[1749683843324,18.34190125,160.47,160.46,5.64]
[1749683843924,13.68317022,160.47,160.46,5.64]
[1749683844129,18.34187869,160.47,160.46,5.64]
[1749683844515,22.99925903,160.47,160.46,5.64]
[1749683844716,22.99946071,160.47,160.46,5.64]
[1749683845135,9.31629049,160.47,160.46,5.64]
[1749683845324,18.3421075,160.47,160.46,5.64]
[1749683845524,22.99947636,160.47,160.46,5.64]
[1749683845733,18.34055056,160.47,160.46,5.64]
[1749683845957,4.65873262,160.47,160.46,5.64]
[1749683846535,39.40317022,160.48,160.46,5.64]
[1749683846831,4.65872328,160.47,160.46,5.64]
[1749683847344,39.40317022,160.48,160.46,5.64]
[1749683847525,4.65873103,160.47,160.46,5.64]
[1749683849040,39.40317022,160.48,160.46,5.64]
[1749683849250,4.65870677,160.47,160.46,5.64]
[1749683849844,4.65870634,160.47,160.46,5.64]
[1749683850014,4.66046045,160.47,160.46,5.64]
[1749683850218,4.66001443,160.47,160.46,5.64]
[1749683850421,39.40317022,160.48,160.46,5.64]
[1749683850636,4.66001377,160.47,160.46,5.64]
[1749683851018,13.68317022,160.47,160.46,5.64]
[1749683851235,18.34346504,160.47,160.43,5.62]
[1749683851439,13.68317022,160.45,160.43,5.62]
[1749683851639,18.3434699,160.45,160.43,5.62]
[1749683852049,13.68317022,160.45,160.43,5.62]
[1749683852245,18.34342199,160.45,160.43,5.62]
[1749683852832,13.68317022,160.45,160.43,5.62]
[1749683853229,18.34348661,160.45,160.43,5.62]
[1749683853441,13.68317022,160.45,160.43,5.62]
[1749683853643,18.34342041,160.45,160.43,5.62]
[1749683854031,13.68317022,160.45,160.43,5.62]
[1749683854350,39.40317022,160.46,160.43,5.62]
[1749683855154,25.72,160.46,160.43,19.30317022]
[1749683855335,12.57372681,160.49,160.44,13.68317022]
[1749683855336,4.65950225,160.48,160.44,13.68317022]
[1749683855645,4.65993218,160.47,160.44,13.68317022]
[1749683855846,4.65993218,160.47,160.43,5.62]
[1749683855847,39.40317022,160.48,160.43,19.30317022]
[1749683856448,4.65980671,160.47,160.43,19.30317022]
[1749683856749,4.65980737,160.47,160.43,19.30317022]
[1749683856945,39.40317022,160.48,160.43,19.30317022]
[1749683857143,38.90317022,160.48,160.43,19.30317022]
[1749683857343,4.6598038,160.47,160.43,19.30317022]
[1749683857536,38.90317022,160.48,160.43,19.30317022]
[1749683857854,4.6598038,160.47,160.43,19.30317022]
[1749683858059,4.65980429,160.47,160.43,19.30317022]
[1749683858366,38.90317022,160.48,160.43,19.30317022]
[1749683858533,18.34297549,160.47,160.43,5.62]
[1749683858726,13.68317022,160.47,160.43,5.62]
[1749683860983,25.22,160.48,160.43,5.62]
[1749683861131,18.34306168,160.47,160.43,5.62]
[1749683861450,13.68317022,160.47,160.43,5.62]
[1749683861637,4.66196185,160.46,160.43,5.62]
[1749683861835,13.68317022,160.47,160.43,5.62]
[1749683862256,13.68317022,160.48,160.43,19.30317022]
[1749683862463,39.40317022,160.48,160.43,19.30317022]
[1749683864140,39.40317022,160.48,160.44,5.62]
[1749683866059,26.0,160.49,160.46,13.68317022]
[1749683866556,2.48773009,160.5,160.47,13.68317022]
[1749683866746,2.48773009,160.5,160.48,13.68317022]
[1749683866946,2.48773009,160.5,160.45,18.64964886]
[1749683866947,2.48773009,160.5,160.47,13.68317022]
[1749683867148,2.48773009,160.5,160.48,13.68317022]
[1749683868972,2.48773009,160.5,160.49,5.62]
[1749683869146,2.48773009,160.5,160.45,18.64964886]
[1749683869147,41.89090031,160.5,160.45,5.62]
[1749683869342,13.68317022,160.47,160.45,5.62]
[1749683869541,13.68317022,160.48,160.45,5.62]
[1749683870340,13.68317022,160.46,160.45,5.62]
[1749683872168,25.72,160.47,160.45,5.62]
[1749683872399,13.68317022,160.46,160.45,5.62]
[1749683872863,39.40317022,160.47,160.45,5.62]
[1749683875072,25.72,160.47,160.45,5.62]
[1749683875548,8.60153009,160.5,160.45,5.62]
[1749683875753,39.40317022,160.48,160.45,5.62]
[1749683878472,25.72,160.48,160.45,5.62]
[1749683878973,2.48773009,160.5,160.46,13.68317022]
[1749683880559,2.48773009,160.5,160.47,13.68317022]
[1749683881975,2.48773009,160.5,160.48,13.68317022]
[1749683883779,2.48773009,160.5,160.46,18.64964886]
[1749683883957,2.48773009,160.5,160.48,13.68317022]
[1749683887274,2.48773009,160.5,160.49,32.33281908]
[1749683890292,2.48773009,160.5,160.49,32.47498065]
[1749683894077,2.48773009,160.5,160.49,32.75930379]
[1749683894281,1.5966,160.62,160.53,44.64964886]
[1749683894594,13.68317022,160.6,160.55,18.64964886]
[1749683894768,13.68317022,160.6,160.54,5.76216157]
[1749683894769,13.68317022,160.59,160.54,5.62]
[1749683895106,13.68317022,160.59,160.53,26.0]
[1749683895400,13.68317022,160.58,160.55,5.62]
[1749683896204,27.5966,160.62,160.55,5.62]
[1749683896367,13.68317022,160.59,160.55,5.62]
[1749683897576,41.27977022,160.62,160.57,13.68317022]
[1749683898083,27.5966,160.62,160.57,13.68317022]
[1749683898301,41.27977022,160.62,160.57,13.68317022]
[1749683899195,27.5966,160.62,160.57,13.68317022]
[1749683899396,149.1,160.63,160.56,18.64964886]
[1749683899696,13.68317022,160.62,160.56,18.64964886]
[1749683899898,149.1,160.63,160.57,13.68317022]
[1749683900096,13.68317022,160.62,160.57,13.68317022]
[1749683900295,149.1,160.63,160.56,18.64964886]
[1749683900497,13.68317022,160.6,160.56,32.33281908]
[1749683900677,13.68317022,160.62,160.57,13.68317022]
[1749683900878,149.1,160.63,160.58,13.68317022]
[1749683901076,13.68317022,160.62,160.58,13.68317022]
[1749683901706,149.1,160.63,160.58,13.68317022]
[1749683901911,13.68317022,160.62,160.58,13.68317022]
[1749683902291,149.1,160.63,160.59,13.68317022]
[1749683902601,149.1,160.63,160.56,18.64964886]
[1749683902602,13.68317022,160.62,160.56,18.64964886]
[1749683902775,13.68317022,160.62,160.57,13.68317022]
[1749683903174,13.68317022,160.62,160.56,18.64964886]
[1749683903175,6.4503,160.64,160.59,13.68317022]
[1749683903377,13.68317022,160.63,160.59,13.68317022]
[1749683903593,13.68317022,160.63,160.56,18.64964886]
[1749683903594,13.68317022,160.63,160.58,13.68317022]
[1749683904198,6.4503,160.64,160.59,13.68317022]
[1749683904509,13.68317022,160.63,160.59,13.68317022]
[1749683905485,13.68317022,160.63,160.58,13.68317022]
[1749683905984,13.68317022,160.62,160.58,13.68317022]
[1749683906197,13.68317022,160.62,160.57,0.14216157]
[1749683906391,13.68317022,160.62,160.58,13.68317022]
[1749683906706,13.68317022,160.62,160.56,18.64964886]
[1749683906902,13.68317022,160.61,160.57,13.68317022]
[1749683907282,13.68317022,160.62,160.57,13.68317022]
[1749683907608,13.68317022,160.62,160.58,13.68317022]
[1749683907813,13.68317022,160.63,160.58,13.68317022]
[1749683908700,13.68317022,160.62,160.58,13.68317022]
[1749683909078,6.4503,160.64,160.56,18.64964886]
[1749683909079,13.68317022,160.59,160.56,5.6]
[1749683909283,13.68317022,160.57,160.56,5.6]
[1749683911602,13.68317022,160.58,160.56,5.6]
[1749683913998,53.2831,160.61,160.56,5.6]
[1749683914206,13.68317022,160.58,160.56,5.6]
[1749683915992,53.2831,160.61,160.56,5.6]
[1749683916194,13.68317022,160.58,160.56,5.6]
[1749683919004,53.2831,160.61,160.56,5.6]
[1749683919204,13.68317022,160.59,160.56,5.6]
[1749683919898,13.68317022,160.58,160.56,5.6]
[1749683920901,13.68317022,160.59,160.56,5.6]
[1749683922022,53.2831,160.61,160.56,5.6]
[1749683922199,13.68317022,160.59,160.56,5.6]
[1749683922722,6.4503,160.64,160.58,13.68317022]
[1749683923021,32.1303,160.64,160.6,13.68317022]
[1749683923410,45.81347022,160.64,160.59,13.68317022]
[1749683923820,32.1303,160.64,160.59,13.68317022]
[1749683924025,45.81347022,160.64,160.59,13.68317022]
[1749683924403,13.68317022,160.63,160.58,13.68317022]
[1749683924817,13.68317022,160.63,160.59,13.68317022]
[1749683926324,13.68317022,160.63,160.58,13.68317022]
[1749683927514,39.36317022,160.63,160.58,13.68317022]
[1749683927716,13.68317022,160.63,160.58,13.68317022]
[1749683927921,39.36317022,160.63,160.58,13.68317022]